[Event "*** MasterClass Titled Tuesday Blitz"]
[Site "Chess.com"]
[Date "2017.12.05"]
[Round "8"]
[White "EndgameGrinder"]
[Black "Hasangatin_Ramil"]
[Result "1-0"]
[WhiteElo "2437"]
[BlackElo "2381"]
[TimeControl "180+2"]
[EndTime "15:58:11 PST"]
[Termination "EndgameGrinder won by resignation"]

1. e4 {[%clk 0:03:01.9]} 1... d5 {[%clk 0:02:57]} 2. exd5 {[%clk 0:03:02.7]}
2... Qxd5 {[%clk 0:02:58.9]} 3. Nc3 {[%clk 0:03:04.2]} 3... Qd6 {[%clk
0:02:57.7]} 4. Nf3 {[%clk 0:03:04.1]} 4... Nf6 {[%clk 0:02:58.3]} 5. g3 {[%clk
0:03:03.3]} 5... c6 {[%clk 0:02:57.3]} 6. Bg2 {[%clk 0:03:04.5]} 6... Bf5 {[%clk
0:02:58.2]} 7. O-O {[%clk 0:03:05.1]} 7... e6 {[%clk 0:02:58.3]} 8. d4 {[%clk
0:03:06.3]} 8... Nbd7 {[%clk 0:02:39.2]} 9. a3 {[%clk 0:03:06.7]} 9... Qc7
{[%clk 0:02:39.7]} 10. Bf4 {[%clk 0:03:07.4]} 10... Bd6 {[%clk 0:02:40.6]} 11.
Bxd6 {[%clk 0:03:08.4]} 11... Qxd6 {[%clk 0:02:42.5]} 12. Re1 {[%clk 0:03:09.6]}
12... O-O {[%clk 0:02:42.7]} 13. Ne5 {[%clk 0:03:09.3]} 13... Nxe5 {[%clk
0:02:41.9]} 14. dxe5 {[%clk 0:03:09.7]} 14... Qxd1 {[%clk 0:02:42.4]} 15. Raxd1
{[%clk 0:03:10.2]} 15... Nd5 {[%clk 0:02:43.8]} 16. Ne4 {[%clk 0:02:57.3]} 16...
Bxe4 {[%clk 0:02:43.1]} 17. Bxe4 {[%clk 0:02:59.2]} 17... b5 {[%clk 0:02:44.2]}
18. Rd2 {[%clk 0:02:51.2]} 18... Rfd8 {[%clk 0:02:40.8]} 19. Rc1 {[%clk
0:02:49.2]} 19... Ne7 {[%clk 0:02:34.6]} 20. Rcd1 {[%clk 0:02:46.1]} 20... Rxd2
{[%clk 0:02:33.9]} 21. Rxd2 {[%clk 0:02:48]} 21... Nd5 {[%clk 0:02:35.3]} 22.
Kf1 {[%clk 0:02:45.1]} 22... Kf8 {[%clk 0:02:33.8]} 23. Ke2 {[%clk 0:02:46]}
23... Ke7 {[%clk 0:02:35.1]} 24. f4 {[%clk 0:02:38.4]} 24... g6 {[%clk
0:02:35.1]} 25. Rd4 {[%clk 0:02:35.2]} 25... Rb8 {[%clk 0:02:30.6]} 26. Bxd5
{[%clk 0:02:16.9]} 26... exd5 {[%clk 0:02:26.1]} 27. Kf3 {[%clk 0:02:14.8]}
27... Ke6 {[%clk 0:02:26.8]} 28. b3 {[%clk 0:02:09.9]} 28... c5 {[%clk
0:02:27.8]} 29. Rd1 {[%clk 0:02:10.2]} 29... a5 {[%clk 0:02:27.4]} 30. Re1
{[%clk 0:02:07]} 30... a4 {[%clk 0:02:26.2]} 31. Rb1 {[%clk 0:01:59]} 31... axb3
{[%clk 0:02:18.1]} 32. Rxb3 {[%clk 0:02:00.9]} 32... f5 {[%clk 0:02:13]} 33. c3
{[%clk 0:01:54.7]} 33... Kd7 {[%clk 0:02:04.8]} 34. a4 {[%clk 0:01:44.6]} 34...
b4 {[%clk 0:02:03.3]} 35. cxb4 {[%clk 0:01:43]} 35... c4 {[%clk 0:02:04.3]} 36.
Rb1 {[%clk 0:01:43]} 36... d4 {[%clk 0:02:04.9]} 37. Ke2 {[%clk 0:01:44.2]}
37... Kc6 {[%clk 0:02:03.5]} 38. Kd2 {[%clk 0:01:44.8]} 38... Ra8 {[%clk
0:02:00.5]} 39. Ra1 {[%clk 0:01:27.7]} 39... Kd5 {[%clk 0:01:55.7]} 40. Kc2
{[%clk 0:01:23.1]} 40... h6 {[%clk 0:01:38.1]} 41. a5 {[%clk 0:01:08.6]} 41...
Kc6 {[%clk 0:01:36.3]} 42. a6 {[%clk 0:00:53.5]} 42... Kb5 {[%clk 0:01:31.4]}
43. a7 {[%clk 0:00:50.3]} 43... Kxb4 {[%clk 0:01:28.1]} 44. e6 {[%clk
0:00:51.4]} 44... d3+ {[%clk 0:01:26.8]} 45. Kd2 {[%clk 0:00:52.1]} 45... Kb3
{[%clk 0:01:26.7]} 46. e7 {[%clk 0:00:22]} 46... Kb2 {[%clk 0:01:25.8]} 47. e8=Q
{[%clk 0:00:22.7]} 47... Rxe8 {[%clk 0:01:24.1]} 48. a8=Q {[%clk 0:00:23.7]} 1-0

[Event "*** MasterClass Titled Tuesday Blitz"]
[Site "Chess.com"]
[Date "2017.12.05"]
[Round "8"]
[White "likantrophuss"]
[Black "1e41-0"]
[Result "1-0"]
[WhiteElo "2454"]
[BlackElo "2342"]
[TimeControl "180+2"]
[EndTime "15:58:28 PST"]
[Termination "likantrophuss won by resignation"]

1. Nf3 {[%clk 0:03:01.9]} 1... d5 {[%clk 0:02:58.7]} 2. c4 {[%clk 0:03:03.2]}
2... c6 {[%clk 0:02:58.2]} 3. g3 {[%clk 0:03:03.6]} 3... Nf6 {[%clk 0:02:58.4]}
4. Bg2 {[%clk 0:03:05.4]} 4... Bg4 {[%clk 0:02:57.6]} 5. O-O {[%clk 0:03:07]}
5... Nbd7 {[%clk 0:02:57.7]} 6. b3 {[%clk 0:03:07.7]} 6... e6 {[%clk 0:02:57.3]}
7. Bb2 {[%clk 0:03:08.2]} 7... Be7 {[%clk 0:02:58.7]} 8. d3 {[%clk 0:03:09.1]}
8... O-O {[%clk 0:02:59.4]} 9. Nc3 {[%clk 0:03:09.1]} 9... Re8 {[%clk
0:02:52.1]} 10. Rc1 {[%clk 0:03:08.7]} 10... a5 {[%clk 0:02:52.3]} 11. a3 {[%clk
0:03:06.4]} 11... Qb6 {[%clk 0:02:44.3]} 12. Na4 {[%clk 0:03:03.5]} 12... Qc7
{[%clk 0:02:43.1]} 13. h3 {[%clk 0:03:03.3]} 13... Bh5 {[%clk 0:02:43.4]} 14.
cxd5 {[%clk 0:03:02.9]} 14... exd5 {[%clk 0:02:42.5]} 15. Nd4 {[%clk 0:03:03.2]}
15... Rad8 {[%clk 0:02:35.8]} 16. g4 {[%clk 0:02:38.8]} 16... Bg6 {[%clk
0:02:34.9]} 17. f4 {[%clk 0:02:38]} 17... h6 {[%clk 0:01:49.5]} 18. f5 {[%clk
0:02:32.8]} 18... Bh7 {[%clk 0:01:50.9]} 19. Qe1 {[%clk 0:02:27.8]} 19... Qe5
{[%clk 0:01:40.4]} 20. Nf3 {[%clk 0:02:05.6]} 20... Qb8 {[%clk 0:01:28.1]} 21.
Qxa5 {[%clk 0:01:43.8]} 21... b5 {[%clk 0:01:26.6]} 22. Nc3 {[%clk 0:01:42.4]}
22... Qg3 {[%clk 0:01:18.4]} 23. Nd1 {[%clk 0:01:25.8]} 23... Bc5+ {[%clk
0:01:12.4]} 24. Bd4 {[%clk 0:01:05.1]} 24... Ra8 {[%clk 0:00:57.9]} 25. Qe1
{[%clk 0:00:59.5]} 25... Qxe1 {[%clk 0:00:57.8]} 26. Rxe1 {[%clk 0:01:00.1]}
26... Bxd4+ {[%clk 0:00:44.7]} 27. Nxd4 {[%clk 0:01:00.3]} 27... Ne5 {[%clk
0:00:46.2]} 28. Nf2 {[%clk 0:00:49.1]} 28... Rxa3 {[%clk 0:00:46]} 29. Nxc6
{[%clk 0:00:49.6]} 29... Nxc6 {[%clk 0:00:47.2]} 30. Rxc6 {[%clk 0:00:50.3]}
30... Rxb3 {[%clk 0:00:48.5]} 31. Rb6 {[%clk 0:00:47.3]} 31... Rb2 {[%clk
0:00:48.7]} 32. Bf3 {[%clk 0:00:47.4]} 32... Kf8 {[%clk 0:00:42.6]} 33. Rc1
{[%clk 0:00:45.9]} 33... Nd7 {[%clk 0:00:36.8]} 34. Rb7 {[%clk 0:00:43]} 34...
Ne5 {[%clk 0:00:38]} 35. Bxd5 {[%clk 0:00:42.5]} 35... Rd8 {[%clk 0:00:35.4]}
36. Kf1 {[%clk 0:00:31.6]} 36... g6 {[%clk 0:00:34.3]} 37. f6 {[%clk 0:00:29.1]}
37... g5 {[%clk 0:00:32.4]} 38. d4 {[%clk 0:00:29.1]} 38... Nd7 {[%clk
0:00:33.7]} 39. Rcc7 {[%clk 0:00:27.6]} 39... Rb1+ {[%clk 0:00:32.9]} 40. Kg2
{[%clk 0:00:27]} 40... Ke8 {[%clk 0:00:21.4]} 41. Rxd7 {[%clk 0:00:23.7]} 41...
Rxd7 {[%clk 0:00:22.3]} 42. Rb8+ {[%clk 0:00:22.4]} 42... Rd8 {[%clk 0:00:23.1]}
43. Bc6+ {[%clk 0:00:23]} 43... Kf8 {[%clk 0:00:24.1]} 1-0

[Event "*** MasterClass Titled Tuesday Blitz"]
[Site "Chess.com"]
[Date "2017.12.05"]
[Round "8"]
[White "MasterBlitz83"]
[Black "chesstrophy1"]
[Result "0-1"]
[WhiteElo "1421"]
[BlackElo "1465"]
[TimeControl "180+2"]
[EndTime "15:58:28 PST"]
[Termination "chesstrophy1 won by resignation"]

1. e4 {[%clk 0:03:01.9]} 1... e5 {[%clk 0:03:00.4]} 2. Nf3 {[%clk 0:03:02.1]}
2... Nc6 {[%clk 0:03:00.9]} 3. Bc4 {[%clk 0:03:02.6]} 3... Bc5 {[%clk
0:02:59.5]} 4. O-O {[%clk 0:03:02.1]} 4... Nf6 {[%clk 0:02:58.2]} 5. d4 {[%clk
0:03:01.8]} 5... Bxd4 {[%clk 0:02:49.6]} 6. Nxd4 {[%clk 0:03:01.7]} 6... Nxd4
{[%clk 0:02:50.2]} 7. f4 {[%clk 0:03:01.9]} 7... d6 {[%clk 0:02:48]} 8. fxe5
{[%clk 0:03:01.5]} 8... dxe5 {[%clk 0:02:49]} 9. Bg5 {[%clk 0:03:00.5]} 9... Be6
{[%clk 0:02:39.2]} 10. Bxe6 {[%clk 0:02:47.1]} 10... Nxe6 {[%clk 0:02:37]} 11.
Qf3 {[%clk 0:02:42.1]} 11... Nd4 {[%clk 0:02:31.7]} 12. Qg3 {[%clk 0:02:21.6]}
12... Nxc2 {[%clk 0:02:28.3]} 13. Qxe5+ {[%clk 0:02:21.3]} 13... Qe7 {[%clk
0:02:27.5]} 14. Qb5+ {[%clk 0:02:19.5]} 14... c6 {[%clk 0:02:15]} 15. Qe2 {[%clk
0:01:57.3]} 15... Nxa1 {[%clk 0:02:13.4]} 16. Nc3 {[%clk 0:01:55.7]} 16... O-O-O
{[%clk 0:02:09]} 17. e5 {[%clk 0:01:53.2]} 17... Rhe8 {[%clk 0:02:05.2]} 18. Re1
{[%clk 0:01:27.2]} 18... Qc5+ {[%clk 0:02:04.7]} 19. Kh1 {[%clk 0:01:26.3]}
19... h6 {[%clk 0:01:48]} 20. Be3 {[%clk 0:01:19]} 20... Qxe5 {[%clk 0:01:44.1]}
21. Qf2 {[%clk 0:01:18.4]} 21... Qc7 {[%clk 0:01:36.7]} 22. Rxa1 {[%clk
0:01:11]} 22... Ne4 {[%clk 0:01:36.4]} 23. Qf5+ {[%clk 0:01:08.7]} 23... Kb8
{[%clk 0:01:25.4]} 24. Nxe4 {[%clk 0:01:06.7]} 24... Qe7 {[%clk 0:01:26]} 25.
Bf4+ {[%clk 0:01:03.1]} 25... Ka8 {[%clk 0:01:24.9]} 26. Re1 {[%clk 0:01:00.7]}
26... Qxe4 {[%clk 0:01:18.8]} 27. Qxe4 {[%clk 0:00:46.7]} 27... Rxe4 {[%clk
0:01:18.6]} 28. Rf1 {[%clk 0:00:39]} 28... Rde8 {[%clk 0:01:13.4]} 29. Bg3
{[%clk 0:00:35.1]} 29... b6 {[%clk 0:01:04.6]} 30. h3 {[%clk 0:00:34]} 30... f6
{[%clk 0:01:03.6]} 31. Rd1 {[%clk 0:00:33.5]} 31... g6 {[%clk 0:00:55.2]} 32.
Rd6 {[%clk 0:00:31.6]} 32... R4e6 {[%clk 0:00:53.9]} 33. Rd7 {[%clk 0:00:30.2]}
33... R6e7 {[%clk 0:00:51.1]} 34. Rd6 {[%clk 0:00:30.5]} 34... Re6 {[%clk
0:00:52.2]} 35. Rd7 {[%clk 0:00:31.3]} 35... a6 {[%clk 0:00:52.3]} 36. Rg7
{[%clk 0:00:24.4]} 36... g5 {[%clk 0:00:50.2]} 37. Bc7 {[%clk 0:00:20.5]} 37...
R8e7 {[%clk 0:00:47.3]} 38. Rg8+ {[%clk 0:00:20]} 38... Kb7 {[%clk 0:00:47]} 39.
Bb8 {[%clk 0:00:18.7]} 39... Re8 {[%clk 0:00:46.3]} 40. Rxe8 {[%clk 0:00:17]}
40... Rxe8 {[%clk 0:00:46.8]} 41. Bg3 {[%clk 0:00:18.9]} 41... Re2 {[%clk
0:00:47.3]} 0-1

[Event "*** MasterClass Titled Tuesday Blitz"]
[Site "Chess.com"]
[Date "2017.12.05"]
[Round "8"]
[White "chidori_boruto"]
[Black "chessking2151"]
[Result "1-0"]
[WhiteElo "2530"]
[BlackElo "2350"]
[TimeControl "180+2"]
[EndTime "15:58:31 PST"]
[Termination "chidori_boruto won by resignation"]

1. d4 {[%clk 0:03:01.9]} 1... Nf6 {[%clk 0:03:00.6]} 2. Nf3 {[%clk 0:03:02.9]}
2... e6 {[%clk 0:03:01.1]} 3. Bf4 {[%clk 0:03:02.7]} 3... c5 {[%clk 0:03:01.5]}
4. c3 {[%clk 0:03:03.7]} 4... d5 {[%clk 0:02:59.3]} 5. e3 {[%clk 0:03:04.5]}
5... Nc6 {[%clk 0:03:00.5]} 6. Nbd2 {[%clk 0:03:05.7]} 6... Bd6 {[%clk
0:03:01.2]} 7. Bg3 {[%clk 0:03:07]} 7... O-O {[%clk 0:02:51.1]} 8. Bd3 {[%clk
0:03:07.9]} 8... b6 {[%clk 0:02:51.5]} 9. O-O {[%clk 0:03:08.2]} 9... Bb7 {[%clk
0:02:50.8]} 10. Qe2 {[%clk 0:03:07.3]} 10... Bxg3 {[%clk 0:02:50.7]} 11. hxg3
{[%clk 0:03:07.8]} 11... Ng4 {[%clk 0:02:52.3]} 12. Rad1 {[%clk 0:03:02.9]}
12... Qf6 {[%clk 0:02:45.1]} 13. e4 {[%clk 0:02:52.8]} 13... cxd4 {[%clk
0:02:43.4]} 14. Nxd4 {[%clk 0:02:51.5]} 14... Nge5 {[%clk 0:02:27.6]} 15. Bb1
{[%clk 0:02:34]} 15... Nxd4 {[%clk 0:01:49.7]} 16. cxd4 {[%clk 0:02:34.3]} 16...
Nc6 {[%clk 0:01:51.3]} 17. exd5 {[%clk 0:02:26.6]} 17... exd5 {[%clk 0:01:30.1]}
18. Nf3 {[%clk 0:02:19.1]} 18... Rfe8 {[%clk 0:01:24.4]} 19. Qd3 {[%clk
0:02:19.8]} 19... g6 {[%clk 0:01:24.4]} 20. Rfe1 {[%clk 0:02:20.7]} 20... Kg7
{[%clk 0:01:15.7]} 21. a3 {[%clk 0:02:17.9]} 21... Re7 {[%clk 0:01:04.5]} 22.
Rxe7 {[%clk 0:02:16.8]} 22... Qxe7 {[%clk 0:01:06.4]} 23. Re1 {[%clk 0:02:17.1]}
23... Qd7 {[%clk 0:01:05.5]} 24. Bc2 {[%clk 0:02:06.1]} 24... Re8 {[%clk
0:01:04.8]} 25. Rxe8 {[%clk 0:02:04.4]} 25... Qxe8 {[%clk 0:01:06.7]} 26. Ba4
{[%clk 0:02:04]} 26... Qe4 {[%clk 0:01:04.9]} 27. Qd2 {[%clk 0:01:31.9]} 27...
Na5 {[%clk 0:00:58.2]} 28. Bc2 {[%clk 0:01:28.5]} 28... Qe7 {[%clk 0:00:57.9]}
29. Bd3 {[%clk 0:01:21.3]} 29... Nc4 {[%clk 0:00:43.5]} 30. Qc2 {[%clk
0:01:15.4]} 30... Nd6 {[%clk 0:00:43.7]} 31. Qe2 {[%clk 0:01:11.6]} 31... Qf6
{[%clk 0:00:41.5]} 32. Qe5 {[%clk 0:01:09.6]} 32... Nc4 {[%clk 0:00:36.5]} 33.
Qc7 {[%clk 0:01:06]} 33... Nxb2 {[%clk 0:00:29.3]} 34. Bb5 {[%clk 0:01:05.6]}
34... a6 {[%clk 0:00:23.5]} 35. Be8 {[%clk 0:00:57.7]} 35... Ba8 {[%clk
0:00:21.6]} 36. Ne5 {[%clk 0:00:57.8]} 36... Nd1 {[%clk 0:00:16.2]} 37. f4
{[%clk 0:00:51.2]} 37... Ne3 {[%clk 0:00:12.3]} 38. Bxf7 {[%clk 0:00:48.2]}
38... Kh6 {[%clk 0:00:08.8]} 39. Bg8 {[%clk 0:00:46.3]} 39... Qg7 {[%clk
0:00:08.6]} 40. Qd8 {[%clk 0:00:39.5]} 40... g5 {[%clk 0:00:07]} 41. fxg5+
{[%clk 0:00:35.4]} 41... Kh5 {[%clk 0:00:05.2]} 42. Bf7+ {[%clk 0:00:32.7]} 1-0

[Event "*** MasterClass Titled Tuesday Blitz"]
[Site "Chess.com"]
[Date "2017.12.05"]
[Round "8"]
[White "jefferyx"]
[Black "Salem-AR"]
[Result "1/2-1/2"]
[WhiteElo "2791"]
[BlackElo "2814"]
[TimeControl "180+2"]
[EndTime "15:58:38 PST"]
[Termination "Game drawn by repetition"]

1. e4 {[%clk 0:03:01.9]} 1... c5 {[%clk 0:03:00.4]} 2. Nf3 {[%clk 0:03:03.2]}
2... d6 {[%clk 0:03:02.1]} 3. d4 {[%clk 0:03:04.7]} 3... cxd4 {[%clk 0:03:02.9]}
4. Qxd4 {[%clk 0:03:06.6]} 4... Nf6 {[%clk 0:03:04.2]} 5. Bg5 {[%clk 0:03:07.5]}
5... Nc6 {[%clk 0:03:02.2]} 6. Bb5 {[%clk 0:03:08.2]} 6... Bd7 {[%clk
0:03:03.8]} 7. Qd3 {[%clk 0:03:07.6]} 7... h6 {[%clk 0:03:03.3]} 8. Bxf6 {[%clk
0:03:07.9]} 8... gxf6 {[%clk 0:03:05.2]} 9. Nc3 {[%clk 0:03:06.2]} 9... Rg8
{[%clk 0:03:06.9]} 10. g3 {[%clk 0:03:06]} 10... e6 {[%clk 0:03:07.6]} 11. O-O-O
{[%clk 0:03:06.5]} 11... Be7 {[%clk 0:03:07.7]} 12. Kb1 {[%clk 0:03:07.2]} 12...
a6 {[%clk 0:03:07.4]} 13. Bxc6 {[%clk 0:03:07]} 13... Bxc6 {[%clk 0:03:06.9]}
14. Nd4 {[%clk 0:03:07.1]} 14... Bd7 {[%clk 0:03:08.5]} 15. f4 {[%clk
0:03:08.2]} 15... Qc7 {[%clk 0:03:08]} 16. f5 {[%clk 0:03:09.2]} 16... O-O-O
{[%clk 0:03:07.4]} 17. Rhf1 {[%clk 0:03:09.7]} 17... h5 {[%clk 0:03:05.8]} 18.
Qe2 {[%clk 0:03:05.4]} 18... Rh8 {[%clk 0:03:05]} 19. Qd3 {[%clk 0:02:04.8]}
19... Kb8 {[%clk 0:03:05.9]} 20. fxe6 {[%clk 0:02:05.9]} 20... fxe6 {[%clk
0:03:06.6]} 21. Nce2 {[%clk 0:02:07.8]} 21... Rdg8 {[%clk 0:02:08.9]} 22. Nf4
{[%clk 0:02:08.3]} 22... Qc8 {[%clk 0:02:09.4]} 23. Qb3 {[%clk 0:01:59.4]} 23...
d5 {[%clk 0:01:49]} 24. exd5 {[%clk 0:01:14.4]} 24... e5 {[%clk 0:01:49.9]} 25.
Nc6+ {[%clk 0:01:15.8]} 25... Bxc6 {[%clk 0:01:51.3]} 26. dxc6 {[%clk
0:01:17.7]} 26... exf4 {[%clk 0:01:51.9]} 27. Rd7 {[%clk 0:01:17.9]} 27... Qxc6
{[%clk 0:01:53.4]} 28. Rxe7 {[%clk 0:01:18.1]} 28... fxg3 {[%clk 0:01:45.9]} 29.
hxg3 {[%clk 0:01:20]} 29... Re8 {[%clk 0:01:30.9]} 30. Rxe8+ {[%clk 0:00:58.5]}
30... Rxe8 {[%clk 0:01:32.8]} 31. a3 {[%clk 0:01:00.1]} 31... Re2 {[%clk
0:01:11.8]} 32. Rf4 {[%clk 0:00:59.2]} 32... Ka7 {[%clk 0:00:50.5]} 33. Qd3
{[%clk 0:00:57.6]} 33... Re1+ {[%clk 0:00:45.2]} 34. Ka2 {[%clk 0:00:58.9]}
34... Qe6+ {[%clk 0:00:45.5]} 35. c4 {[%clk 0:01:00.2]} 35... Re5 {[%clk
0:00:45.7]} 36. Qd4+ {[%clk 0:01:01]} 36... Kb8 {[%clk 0:00:45.3]} 37. Qd8+
{[%clk 0:01:01.5]} 37... Ka7 {[%clk 0:00:46.8]} 38. Qxf6 {[%clk 0:00:58.2]}
38... Qxf6 {[%clk 0:00:47.9]} 39. Rxf6 {[%clk 0:01:00.1]} 39... Rg5 {[%clk
0:00:49.1]} 40. Rh6 {[%clk 0:01:00.9]} 40... Rxg3 {[%clk 0:00:48.6]} 41. Rxh5
{[%clk 0:01:02]} 41... Kb6 {[%clk 0:00:47.2]} 42. a4 {[%clk 0:01:03]} 42... a5
{[%clk 0:00:45.4]} 43. Rb5+ {[%clk 0:01:02.9]} 43... Ka6 {[%clk 0:00:46.7]} 44.
c5 {[%clk 0:01:04.5]} 44... Rg6 {[%clk 0:00:45.1]} 45. b3 {[%clk 0:01:05.5]}
45... Rc6 {[%clk 0:00:45.5]} 46. Kb2 {[%clk 0:01:06.1]} 46... Rh6 {[%clk
0:00:46.7]} 47. Kc3 {[%clk 0:01:07.2]} 47... Rh3+ {[%clk 0:00:45.7]} 48. Kd4
{[%clk 0:01:08.3]} 48... Rh4+ {[%clk 0:00:47.3]} 49. Ke5 {[%clk 0:01:09.6]}
49... Rh5+ {[%clk 0:00:48.8]} 50. Kf6 {[%clk 0:01:08.6]} 50... Rh6+ {[%clk
0:00:49.9]} 51. Kg7 {[%clk 0:01:09.8]} 51... Rc6 {[%clk 0:00:50.5]} 52. Kf7
{[%clk 0:01:05.7]} 52... Rh6 {[%clk 0:00:51.1]} 53. Ke7 {[%clk 0:00:49.7]} 53...
Rh7+ {[%clk 0:00:51.8]} 54. Kd6 {[%clk 0:00:50]} 54... Rh6+ {[%clk 0:00:52.8]}
55. Kc7 {[%clk 0:00:51.1]} 55... Rh7+ {[%clk 0:00:52.7]} 56. Kd6 {[%clk
0:00:51]} 56... Rh6+ {[%clk 0:00:53.9]} 57. Kc7 {[%clk 0:00:52.3]} 57... Rh7+
{[%clk 0:00:55.1]} 58. Kd6 {[%clk 0:00:53.8]} 1/2-1/2

[Event "*** MasterClass Titled Tuesday Blitz"]
[Site "Chess.com"]
[Date "2017.12.05"]
[Round "8"]
[White "TheMagician"]
[Black "josemoramoron"]
[Result "0-1"]
[WhiteElo "2167"]
[BlackElo "2194"]
[TimeControl "180+2"]
[EndTime "15:58:42 PST"]
[Termination "josemoramoron won by checkmate"]

1. d4 {[%clk 0:03:01.9]} 1... Nf6 {[%clk 0:02:59.6]} 2. Nc3 {[%clk 0:03:02.8]}
2... d5 {[%clk 0:02:59.5]} 3. Bg5 {[%clk 0:03:03.8]} 3... Nbd7 {[%clk
0:02:59.9]} 4. e3 {[%clk 0:03:01.5]} 4... c5 {[%clk 0:02:56.6]} 5. Bb5 {[%clk
0:03:01.3]} 5... a6 {[%clk 0:02:51.5]} 6. Bxd7+ {[%clk 0:02:57]} 6... Bxd7
{[%clk 0:02:46.9]} 7. Bxf6 {[%clk 0:02:57]} 7... gxf6 {[%clk 0:02:45.4]} 8. dxc5
{[%clk 0:02:55.8]} 8... e6 {[%clk 0:02:46]} 9. e4 {[%clk 0:02:52.7]} 9... Bxc5
{[%clk 0:02:34.6]} 10. exd5 {[%clk 0:02:52.7]} 10... Qb6 {[%clk 0:02:30.7]} 11.
Nh3 {[%clk 0:02:19.9]} 11... Qxb2 {[%clk 0:02:29.9]} 12. Ne2 {[%clk 0:02:09.2]}
12... Bb4+ {[%clk 0:02:28]} 13. Kf1 {[%clk 0:02:08.3]} 13... Bb5 {[%clk
0:02:11.7]} 14. Rb1 {[%clk 0:01:57.6]} 14... Bxe2+ {[%clk 0:02:11.1]} 15. Kxe2
{[%clk 0:01:57.9]} 15... Qe5+ {[%clk 0:02:11.2]} 16. Kf1 {[%clk 0:01:59]} 16...
Rd8 {[%clk 0:01:44.1]} 17. Rxb4 {[%clk 0:01:45.1]} 17... Rxd5 {[%clk 0:01:44.4]}
18. Qe1 {[%clk 0:01:35.7]} 18... Qd6 {[%clk 0:01:40.5]} 19. Rb1 {[%clk
0:01:33.3]} 19... O-O {[%clk 0:01:38.5]} 20. g3 {[%clk 0:01:25.9]} 20... Qc6
{[%clk 0:01:37.8]} 21. Rg1 {[%clk 0:00:56.1]} 21... Rfd8 {[%clk 0:01:37.8]} 22.
Nf4 {[%clk 0:00:56.3]} 22... Rd2 {[%clk 0:01:37.8]} 23. Rc1 {[%clk 0:00:38.2]}
23... e5 {[%clk 0:01:11.9]} 24. Nd3 {[%clk 0:00:36.7]} 24... Rxc2 {[%clk
0:01:10.4]} 25. Rxc2 {[%clk 0:00:33.2]} 25... Qxc2 {[%clk 0:01:11.4]} 26. Nxe5
{[%clk 0:00:25]} 26... Rd1 {[%clk 0:01:07.9]} 27. Qxd1 {[%clk 0:00:25.5]} 27...
Qxd1+ {[%clk 0:01:08.5]} 28. Kg2 {[%clk 0:00:27.4]} 28... Qd5+ {[%clk
0:01:07.4]} 29. Nf3 {[%clk 0:00:28.5]} 29... Qxa2 {[%clk 0:01:08.4]} 30. g4
{[%clk 0:00:27.3]} 30... b5 {[%clk 0:01:09.1]} 31. Rd1 {[%clk 0:00:20.7]} 31...
b4 {[%clk 0:01:08.5]} 32. Nh4 {[%clk 0:00:21.7]} 32... h5 {[%clk 0:00:48.4]} 33.
h3 {[%clk 0:00:15.9]} 33... hxg4 {[%clk 0:00:46.1]} 34. hxg4 {[%clk 0:00:16.7]}
34... b3 {[%clk 0:00:41.7]} 35. Rd8+ {[%clk 0:00:16.8]} 35... Kh7 {[%clk
0:00:42.1]} 36. Rd7 {[%clk 0:00:15.4]} 36... b2 {[%clk 0:00:42.7]} 37. g5 {[%clk
0:00:12.9]} 37... fxg5 {[%clk 0:00:42.9]} 38. Nf3 {[%clk 0:00:14]} 38... b1=Q
{[%clk 0:00:40.5]} 39. Rxf7+ {[%clk 0:00:13.1]} 39... Kg8 {[%clk 0:00:40.1]} 40.
Rf6 {[%clk 0:00:11.4]} 40... Qaa1 {[%clk 0:00:36.7]} 41. Rg6+ {[%clk 0:00:03.2]}
41... Qxg6 {[%clk 0:00:37]} 42. Ne5 {[%clk 0:00:04]} 42... Qe4+ {[%clk
0:00:36.8]} 43. Kg3 {[%clk 0:00:05.9]} 43... Qg1+ {[%clk 0:00:36.6]} 44. Kh3
{[%clk 0:00:06.3]} 44... Qh4# {[%clk 0:00:37.3]} 0-1